Workbook

Sheet Acerno_Cache_XXXXX (hidden)

Sheet Sumcost Exhibits
B3: Sumcost | C3: AVISTA UTILITIES | I3: Natural Gas Utility
B4: Company Base Case UG-17____ | C4: Cost of Service General Summary | I4: Washington Jurisdiction
C5: For the Twelve Months Ended December 31, 2016
B7: (b) | C7: (c) | D7: (d) | E7: (e) | F7: (f) | G7: (g) | H7: (h) | I7: (i) | J7: (j) | K7: (k)
G8: General | H8: Large General | I8: High Load Factor | J8: Interruptible | K8: Transportation
F9: System | G9: Service | H9: Service | I9: Lg. Gen. Service | J9: Service | K9: Service
B10: Description | F10: Total | G10: Sch 101 | H10: Sch 111/112 | I10: Sch 121/122 | J10: Sch 131/132 | K10: Sch 146
B11: Plant In Service
A12: 1 | B12: Production Plant
A13: 2 | B13: Underground Storage Plant | F13: =SUM(G13:K13) -> 28217000 | G13: 19164024.51 | H13: 7693377.68 | I13: 660264.0252 | J13: 144599.3475 | K13: 554734.4417
A14: 3 | B14: Distribution Plant | F14: =SUM(G14:K14) -> 434954000 | G14: 343411573.5 | H14: 63847894.35 | I14: 4789943.409 | J14: 911657.3816 | K14: 21992931.35
A15: 4 | B15: Intangible Plant | F15: =SUM(G15:K15) -> 25720000 | G15: 22232008.96 | H15: 2573918.618 | I15: 175908.2793 | J15: 36152.86158 | K15: 702011.282
A16: 5 | B16: General Plant | F16: =SUM(G16:K16) -> 72393000 | G16: 63110698.13 | H16: 6910657.924 | I16: 465282.4816 | J16: 96821.74865 | K16: 1809539.713
A17: 6 | B17: Total Plant In Service | F17: =SUM(F13:F16) -> 561284000 | G17: 447918305.1 | H17: 81025848.57 | I17: 6091398.196 | J17: 1189231.339 | K17: 25059216.79
B19: Accum Depreciation
A20: 7 | B20: Production Plant
A21: 8 | B21: Underground Storage Plant | F21: =SUM(G21:K21) -> -10972000 | G21: -7451808.374 | H21: -2991520.711 | I21: -256739.4437 | J21: -56226.53153 | K21: -215704.9401
A22: 9 | B22: Distribution Plant | F22: =SUM(G22:K22) -> -141341000 | G22: -113014409.7 | H22: -19714484.01 | I22: -1490650.15 | J22: -280620.0496 | K22: -6840836.117
A23: 10 | B23: Intangible Plant | F23: =SUM(G23:K23) -> -6436000 | G23: -5578530.229 | H23: -634504.667 | I23: -43162.7571 | J23: -8905.151735 | K23: -170897.1952
A24: 11 | B24: General Plant | F24: =SUM(G24:K24) -> -22640000 | G24: -19737076.87 | H24: -2161221.325 | I24: -145511.2426 | J24: -30279.78381 | K24: -565910.7802
A25: 12 | B25: Total Accumulated Depreciation | F25: =SUM(F21:F24) -> -181389000 | G25: -145781825.1 | H25: -25501730.71 | I25: -1936063.593 | J25: -376031.5166 | K25: -7793349.032
A27: 13 | B27: Net Plant | F27: =F17+F25 -> 379895000 | G27: 302136480 | H27: 55524117.86 | I27: 4155334.602 | J27: 813199.8226 | K27: 17265867.76
A28: 14 | B28: Accumlulated Deferred FIT | F28: =SUM(G28:K28) -> -85497000 | G28: -68228688.74 | H28: -12342177.89 | I28: -927865.8781 | J28: -181148.4236 | K28: -3817119.066
A29: 15 | B29: Miscellaneous Rate Base | F29: =SUM(G29:K29) -> 25141000 | G29: 19227036.98 | H29: 4621980.22 | I29: 373928.6264 | J29: 78073.15846 | K29: 839981.0176
A30: 16 | B30: Total Rate Base | F30: =SUM(F27:F29) -> 319539000 | G30: 253134828.2 | H30: 47803920.19 | I30: 3601397.35 | J30: 710124.5574 | K30: 14288729.71
A32: 17 | B32: Revenue From Retail Rates | F32: =SUM(G32:K32) -> 87219000 | G32: 67621992.25 | H32: 15462087.99 | I32: 1024175.845 | J32: 190167.5966 | K32: 2920576.314
A33: 18 | B33: Other Operating Revenues | F33: =SUM(G33:K33) -> 1857000 | G33: 1471063.168 | H33: 277781.4325 | I33: 20926.67175 | J33: 4125.496963 | K33: 83103.23073
A34: 19 | B34: Total Revenues | F34: =SUM(F32:F33) -> 89076000 | G34: 69093055.42 | H34: 15739869.43 | I34: 1045102.516 | J34: 194293.0935 | K34: 3003679.544
B36: Operating Expenses
A37: 20 | B37: Purchased Gas Costs | F37: =SUM(G37:K37) -> 1019000 | G37: 687931.4894 | H37: 271847.4511 | I37: 23042.10477 | J37: 5019.19688 | K37: 31159.75787
A38: 21 | B38: Underground Storage Expenses | F38: 974000 | G38: 661507.5971 | H38: 265561.536 | I38: 22791.12452 | J38: 4991.308942 | K38: 19148.43343
A39: 22 | B39: Distribution Expenses | F39: 12693000 | G39: 10429944.67 | H39: 1640731.387 | I39: 105011.6657 | J39: 23632.46975 | K39: 493679.8129
A40: 23 | B40: Customer Accounting Expenses | F40: 6652000 | G40: 6440417.909 | H40: 187874.6504 | I40: 6137.794483 | J40: 1051.608379 | K40: 16518.03733
A41: 24 | B41: Customer Information Expenses | F41: 977000 | G41: 959466.9709 | H41: 17129.49934 | I41: 141.7807149 | J41: 12.46423867 | K41: 249.2847734
A42: 25 | B42: Sales Expenses | F42: 1000 | G42: 982.0542179 | H42: 17.53275265 | I42: 0.145118439 | J42: 0.01275766496 | K42: 0.2551532993
A43: 26 | B43: Admin & General Expenses | F43: 13718000.02 | G43: 11923800.73 | H43: 1336428.128 | I43: 90173.97584 | J43: 18681.73756 | K43: 348915.4453
A44: 27 | B44: Total O&M Expenses | F44: =SUM(F37:F43) -> 36034000.02 | G44: 31104051.42 | H44: 3719590.184 | I44: 247298.5912 | J44: 53388.79851 | K44: 909671.0267
A46: 28 | B46: Taxes Other Than Income Taxes | F46: =SUM(G46:K46) -> 6514000 | G46: 5068453.129 | H46: 1088720.883 | I46: 77224.0683 | J46: 14681.97232 | K46: 264919.9476
A47: 29 | B47: Depreciation Expense
A48: 30 | B48: Underground Storage Plant Depr | F48: =SUM(G48:K48) -> 529000 | G48: 359278.7668 | H48: 144232.0868 | I48: 12378.34176 | J48: 2710.885452 | K48: 10399.91919
A49: 31 | B49: Distribution Plant Depreciation | F49: =SUM(G49:K49) -> 10958000 | G49: 8690924.108 | H49: 1588766.213 | I49: 116815.063 | J49: 22617.95953 | K49: 538876.6569
A50: 32 | B50: General Plant Depreciation | F50: =SUM(G50:K50) -> 5303000 | G50: 4623044.109 | H50: 506226.0021 | I50: 34083.30916 | J50: 7092.47763 | K50: 132554.1019
A51: 33 | B51: Amortization of Intangible Plant | F51: =SUM(G51:K51) -> 3672000 | G51: 3191879.008 | H51: 356330.7576 | I51: 24118.73166 | J51: 4996.817704 | K51: 94674.68519
A52: 34 | B52: Total Depr & Amort Expense | F52: =SUM(F48:F51) -> 20462000 | G52: 16865125.99 | H52: 2595555.059 | I52: 187395.4456 | J52: 37418.14032 | K52: 776505.3632
A53: 35 | B53: Income Tax | F53: =SUM(G53:K53) -> 6402000 | G53: 3350445.913 | H53: 2619968.017 | I53: 161852.415 | J53: 25796.00393 | K53: 243937.6516
A54: 36 | B54: Total Operating Expenses | F54: =F44+F46+F52+F53 -> 69412000.02 | G54: 56388076.45 | H54: 10023834.14 | I54: 673770.5201 | J54: 131284.9151 | K54: 2195033.989
A56: 37 | B56: Net Income | F56: =F34-F54 -> 19663999.98 | G56: 12704978.97 | H56: 5716035.284 | I56: 371331.9964 | J56: 63008.17845 | K56: 808645.5552
A58: 38 | B58: Rate of Return | F58: =F56/F30 -> 0.06153865407 | G58: 0.05019056074 | H58: 0.1195725217 | I58: 0.1031077552 | J58: 0.08872834742 | K58: 0.05659324319
A59: 39 | B59: Return Ratio | F59: =F58/$F58 -> 1 | G59: 0.8155940603 | H59: 1.943047398 | I59: 1.67549578 | J59: 1.441831135 | K59: 0.9196373245
A61: 40 | B61: Interest Expense | F61: =SUM(G61:K61) -> 8979000 | G61: 7113052.311 | H61: 1343283.29 | I61: 101198.7482 | J61: 19954.39806 | K61: 401511.2523
K63: Page 1 of 4
B64: =$B$3 -> Sumcost | C64: =$C$3 -> AVISTA UTILITIES | I64: =$I$3 -> Natural Gas Utility
B65: =$B$4 -> Company Base Case UG-17____ | C65: Summary by Function with Margin Analysis | I65: =$I$4 -> Washington Jurisdiction
C66: =$C$5 -> For the Twelve Months Ended December 31, 2016
B68: =$B$7 -> (b) | C68: =$C$7 -> (c) | D68: =$D$7 -> (d) | E68: =$E$7 -> (e) | F68: =$F$7 -> (f) | G68: =$G$7 -> (g) | H68: =$H$7 -> (h) | I68: =$I$7 -> (i) | J68: =$J$7 -> (j) | K68: =$K$7 -> (k)
F69: =F8 ->  | G69: General | H69: Large General | I69: High Load Factor | J69: Interruptible | K69: Transportation
F70: System | G70: Service | H70: Service | I70: Lg. Gen. Service | J70: Service | K70: Service
B71: =$B$10 -> Description | F71: Total | G71: Sch 101 | H71: Sch 111/112 | I71: Sch 121/122 | J71: Sch 131/132 | K71: Sch 146
B73: Functional Cost Components at Current Rates
A74: 1 | B74: Production | F74: =SUM(G74:K74) -> 1063799.117 | G74: 718175.5748 | H74: 283798.8992 | I74: 24055.12336 | J74: 5239.85987 | K74: 32529.65937
A75: 2 | B75: Underground Storage | F75: =SUM(G75:K75) -> 3911093.804 | G75: 2140942.775 | H75: 1560247.775 | I75: 119674.967 | J75: 23484.56684 | K75: 66743.71971
A76: 3 | B76: Distribution | F76: =SUM(G76:K76) -> 53542173.15 | G76: 40591784.52 | H76: 10093743.65 | I76: 653650.0406 | J76: 117007.2883 | K76: 2085987.652
A77: 4 | B77: Common | F77: =SUM(G77:K77) -> 28701933.93 | G77: 24171089.38 | H77: 3524297.672 | I77: 226795.7138 | J77: 44435.8816 | K77: 735315.2831
A78: 5 | B78: Total Current Rate Revenue | F78: =SUM(F74:F77) -> 87219000 | G78: 67621992.25 | H78: 15462087.99 | I78: 1024175.845 | J78: 190167.5966 | K78: 2920576.314
A79: 6 | B79: Exclude Cost of Gas w / Revenue Exp. | F79: =SUM(G79:K79) -> 0 | G79: 0 | H79: 0 | I79: 0 | J79: 0 | K79: 0
A80: 7 | B80: Total Margin Revenue at Current Rates | F80: =F78-F79 -> 87219000 | G80: 67621992.25 | H80: 15462087.99 | I80: 1024175.845 | J80: 190167.5966 | K80: 2920576.314
B82: Margin per Therm at Current Rates
A83: 8 | B83: Production | F83: 0.005256046132 | G83: 0.00603448111 | H83: 0.005940044143 | I83: 0.005866593169 | J83: 0.00583511418 | K83: 0.001062791613
A84: 9 | B84: Underground Storage | F84: 0.01931503381 | G84: 0.01800453155 | H84: 0.03258832779 | I84: 0.02912750315 | J84: 0.02610501214 | K84: 0.002177942976
A85: 10 | B85: Distribution | F85: 0.2645384811 | G85: 0.3412551088 | H85: 0.2108724005 | I85: 0.1591170146 | J85: 0.1300913027 | K85: 0.06807896707
A86: 11 | B86: Common | F86: 0.1402562801 | G86: 0.2008331909 | H86: 0.07305039289 | I86: 0.05475728989 | J86: 0.04896885901 | K86: 0.02375259954
A87: 12 | B87: Total Current Margin Melded Rate per Therm | F87: =SUM(F83:F86) -> 0.4293658411 | G87: 0.5661273123 | H87: 0.3224511653 | I87: 0.2488684008 | J87: 0.211000288 | K87: 0.0950723012
B89: Functional Cost Components at Uniform Current Return
A90: 13 | B90: Production | F90: =SUM(G90:K90) -> 1067684.114 | G90: 720798.3539 | H90: 284835.3335 | I90: 24142.97273 | J90: 5258.995852 | K90: 32648.45777
A91: 14 | B91: Underground Storage | F91: =SUM(G91:K91) -> 3586014.736 | G91: 2435498.964 | H91: 977728.5228 | I91: 83910.99422 | J91: 18376.70166 | K91: 70499.55284
A92: 15 | B92: Distribution | F92: =SUM(G92:K92) -> 53665071.85 | G92: 44167614.85 | H92: 6738496.623 | I92: 474365.0684 | J92: 94641.3987 | K92: 2189953.91
A93: 16 | B93: Common | F93: =SUM(G93:K93) -> 28900229.3 | G93: 25111288.77 | H93: 2812612.268 | I93: 190914.0533 | J93: 39538.67938 | K93: 745875.5353
A94: 17 | B94: Total Uniform Current Cost | F94: =SUM(F90:F93) -> 87219000 | G94: 72435200.93 | H94: 10813672.75 | I94: 773333.0886 | J94: 157815.7756 | K94: 3038977.456
A95: 18 | B95: Exclude Cost of Gas w / Revenue Exp. | F95: =SUM(G95:K95) -> 0 | G95: 0 | H95: 0 | I95: 0 | J95: 0 | K95: 0
A96: 19 | B96: Total Uniform Current Margin | F96: =F94-F95 -> 87219000 | G96: 72435200.93 | H96: 10813672.75 | I96: 773333.0886 | J96: 157815.7756 | K96: 3038977.456
B98: Margin per Therm at Uniform Current Return
A99: 20 | B99: Production | F99: 0.005256046132 | G99: 0.00603448111 | H99: 0.005940044143 | I99: 0.005866593169 | J99: 0.00583511418 | K99: 0.001062791613
A100: 21 | B100: Underground Storage | F100: 0.01765340388 | G100: 0.02038985302 | H100: 0.02038985302 | I100: 0.02038985302 | J100: 0.02038985302 | K100: 0.002294942505
A101: 22 | B101: Distribution | F101: 0.2641849679 | G101: 0.3697686545 | H101: 0.1405266927 | I101: 0.11526778 | J101: 0.1050092799 | K101: 0.07128865518
A102: 23 | B102: Common | F102: 0.1422714232 | G102: 0.2102302216 | H102: 0.05865508616 | I102: 0.04639093509 | J102: 0.04387010662 | K102: 0.02428017485
A103: 24 | B103: Total Current Uniform Margin Melded Rate per Therm | F103: =SUM(F99:F102) -> 0.4293658411 | G103: 0.6064232102 | H103: 0.2255116761 | I103: 0.1879151613 | J103: 0.1751043538 | K103: 0.09892656415
A105: 25 | B105: Margin to Cost Ratio at Current Rates | F105: =F80/F96 -> 1 | G105: 0.9335515244 | H105: 1.429864613 | I105: 1.324365736 | J105: 1.204997383 | K105: 0.9610391508
B108: Functional Cost Components at Proposed Rates
A109: 26 | B109: Production | F109: =SUM(G109:K109) -> 1067648.397 | G109: 720774.2417 | H109: 284825.8052 | I109: 24142.1651 | J109: 5258.819927 | K109: 32647.36561
A110: 27 | B110: Underground Storage | F110: =SUM(G110:K110) -> 4512780.667 | G110: 2530142.415 | H110: 1747154.716 | I110: 133775.1733 | J110: 26393.67574 | K110: 75314.68776
A111: 28 | B111: Distribution | F111: =SUM(G111:K111) -> 59650482.13 | G111: 45298455.76 | H111: 11175557.99 | I111: 724602.8877 | J111: 129824.8899 | K111: 2322040.593
A112: 29 | B112: Common | F112: =SUM(G112:K112) -> 30257088.81 | G112: 25483619.83 | H112: 3720549.479 | I112: 238655.6187 | J112: 46690.21097 | K112: 767573.6672
A113: 30 | B113: Total Proposed Rate Revenue | F113: =SUM(F109:F112) -> 95488000 | G113: 74032992.25 | H113: 16928087.99 | I113: 1121175.845 | J113: 208167.5966 | K113: 3197576.314
A114: 31 | B114: Exclude Cost of Gas w / Revenue Exp. | F114: =SUM(G114:K114) -> 0 | G114: 0 | H114: 0 | I114: 0 | J114: 0 | K114: 0
A115: 32 | B115: Total Margin Revenue at Proposed Rates | F115: =F113-F114 -> 95488000 | G115: 74032992.25 | H115: 16928087.99 | I115: 1121175.845 | J115: 208167.5966 | K115: 3197576.314
B117: Margin per Therm at Proposed Rates
A118: 33 | B118: Production | F118: 0.005255870306 | G118: 0.006034279243 | H118: 0.005939845436 | I118: 0.005866396919 | J118: 0.005834918983 | K118: 0.00106275606
A119: 34 | B119: Underground Storage | F119: 0.02221573129 | G119: 0.02118220238 | H119: 0.03643570482 | I119: 0.03250654036 | J119: 0.02928507949 | K119: 0.002451687581
A120: 35 | B120: Distribution | F120: 0.2936502303 | G120: 0.3792359876 | H120: 0.2330585429 | I120: 0.1760740236 | J120: 0.1440470914 | K120: 0.07558841781
A121: 36 | B121: Common | F121: 0.1489510357 | G121: 0.2133473553 | H121: 0.07758948957 | I121: 0.05799184044 | J121: 0.05180508215 | K121: 0.02498650507
A122: 37 | B122: Total Proposed Margin Melded Rate per Therm | F122: =SUM(F118:F121) -> 0.4700728676 | G122: 0.6197998245 | H122: 0.3530235828 | I122: 0.2724388013 | J122: 0.230972172 | K122: 0.1040893665
B124: Functional Cost Components at Uniform Proposed Return
A125: 38 | B125: Production | F125: =SUM(G125:K125) -> 1067648.397 | G125: 720774.2417 | H125: 284825.8052 | I125: 24142.1651 | J125: 5258.819927 | K125: 32647.36561
A126: 39 | B126: Underground Storage | F126: =SUM(G126:K126) -> 4157037.219 | G126: 2823317.969 | H126: 1133418.058 | I126: 97272.64155 | J126: 21302.93331 | K126: 81725.61649
A127: 40 | B127: Distribution | F127: =SUM(G127:K127) -> 59586103.31 | G127: 48803004.18 | H127: 7636284.407 | I127: 541417.7005 | J127: 107483.2343 | K127: 2497913.794
A128: 41 | B128: Common | F128: =SUM(G128:K128) -> 30677211.09 | G128: 26638591.91 | H128: 2996284.552 | I128: 203704.2156 | J128: 42148.529 | K128: 796481.8834
A129: 42 | B129: Total Uniform Proposed Cost | F129: =SUM(F125:F128) -> 95488000.02 | G129: 78985688.3 | H129: 12050812.82 | I129: 866536.7228 | J129: 176193.5165 | K129: 3408768.66
A130: 43 | B130: Exclude Cost of Gas w / Revenue Exp. | F130: =SUM(G130:K130) -> 0 | G130: 0 | H130: 0 | I130: 0 | J130: 0 | K130: 0
A131: 44 | B131: Total Uniform Proposed Margin | F131: =F129-F130 -> 95488000.02 | G131: 78985688.3 | H131: 12050812.82 | I131: 866536.7228 | J131: 176193.5165 | K131: 3408768.66
B133: Margin per Therm at Uniform Proposed Return
A134: 45 | B134: Production | F134: 0.005255870306 | G134: 0.006034279243 | H134: 0.005939845436 | I134: 0.005866396919 | J134: 0.005834918983 | K134: 0.00106275606
A135: 46 | B135: Underground Storage | F135: 0.02046446052 | G135: 0.02363665075 | H135: 0.02363665075 | I135: 0.02363665075 | J135: 0.02363665075 | K135: 0.002660379867
A136: 47 | B136: Distribution | F136: 0.2933333032 | G136: 0.4085758593 | H136: 0.1592494369 | I136: 0.1315611552 | J136: 0.1192579272 | K136: 0.0813135447
A137: 48 | B137: Common | F137: 0.1510192337 | G137: 0.2230167131 | H137: 0.06248544477 | I137: 0.0494988655 | J137: 0.04676586294 | K137: 0.02592754216
A138: 49 | B138: Total Proposed Uniform Margin Melded Rate per Therm | F138: =SUM(F134:F137) -> 0.4700728677 | G138: 0.6612635023 | H138: 0.2513113778 | I138: 0.2105630684 | J138: 0.1954953598 | K138: 0.1109642228
A140: 50 | B140: Margin to Cost Ratio at Proposed Rates | F140: =F115/F131 -> 0.9999999998 | G140: =G115/G131 -> 0.9372962855 | H140: 1.404725826 | I140: 1.293858431 | J140: 1.181471377 | K140: 0.9380443887
A142: 51 | B142: Current Margin to Proposed Cost Ratio | F142: =F80/F131 -> 0.9134027311 | G142: =G80/G131 -> 0.8561296826 | H142: =H80/H131 -> 1.283074281 | I142: 1.181918571 | J142: 1.079310978 | K142: 0.856783374
K144: Page 2 of 4
B145: =B3 -> Sumcost | C145: =C3 -> AVISTA UTILITIES | I145: =I3 -> Natural Gas Utility
B146: =B4 -> Company Base Case UG-17____ | C146: Summary by Classification with Unit Cost Analysis | I146: =I4 -> Washington Jurisdiction
C147: =C5 -> For the Twelve Months Ended December 31, 2016 | K147: =K5 -> 
B149: =B7 -> (b) | C149: (c) | D149: (d) | E149: (e) | F149: (f) | G149: (g) | H149: (h) | I149: (i) | J149: (j) | K149: (k)
F150: =F8 ->  | G150: General | H150: Large General | I150: High Load Factor | J150: Interruptible | K150: Transportation
F151: System | G151: Service | H151: Service | I151: Lg. Gen. Service | J151: Service | K151: Service
B152: =B10 -> Description | F152: Total | G152: Sch 101 | H152: Sch 111/112 | I152: Sch 121/122 | J152: Sch 131/132 | K152: Sch 146
B154: Cost by Classification at Current Return by Schedule
A155: 1 | B155: Commodity | F155: =SUM(G155:K155) -> 18209472.62 | G155: 10125154.01 | H155: 6454900.19 | I155: 504901.8451 | J155: 72060.51311 | K155: 1052456.064
A156: 2 | B156: Demand | F156: =SUM(G156:K156) -> 17984792.39 | G156: 10318366.16 | H156: 5590710.413 | I156: 438522.3019 | J156: 85422.16593 | K156: 1551771.348
A157: 3 | B157: Customer | F157: =SUM(G157:K157) -> 51024734.97 | G157: 47178472.06 | H157: 3416477.391 | I157: 80751.6977 | J157: 32684.91753 | K157: 316348.9019
A158: 4 | B158: Total Current Rate Revenue | F158: =SUM(F155:F157) -> 87218999.98 | G158: 67621992.23 | H158: 15462087.99 | I158: 1024175.845 | J158: 190167.5966 | K158: 2920576.314
B160: Revenue per Therm at Current Rates
A161: 5 | B161: Commodity | F161: 0.08964245783 | G161: 0.08476718943 | H161: 0.134612485 | I161: 0.122688028 | J161: 0.07995467837 | K161: 0.03426016277
A162: 6 | B162: Demand | F162: 0.08853639129 | G162: 0.0863847501 | H162: 0.1165904041 | I162: 0.1065582093 | J162: 0.09478008839 | K162: 0.05051416472
A163: 7 | B163: Customer | F163: 0.2511869919 | G163: 0.3949753727 | H163: 0.0712482762 | I163: 0.01962216349 | J163: 0.03626552124 | K163: 0.01029797371
A164: 8 | B164: Total Revenue per Therm at Current Rates | F164: =SUM(F161:F163) -> 0.4293658411 | G164: 0.5661273122 | H164: 0.3224511653 | I164: 0.2488684008 | J164: 0.211000288 | K164: 0.0950723012
B166: Cost per Unit at Current Rates
A167: 9 | B167: Commodity Cost per Therm | F167: 0.08964245783 | G167: 0.08476718943 | H167: 0.134612485 | I167: 0.122688028 | J167: 0.07995467837 | K167: 0.03426016277
A168: 10 | B168: Demand Cost per Peak Day Therms | F168: 12.48341591 | G168: 10.80868467 | H168: 17.62813481 | I168: 16.00983731 | J168: 14.59650662 | K168: 11.43799484
A169: 11 | B169: Customer Cost per Customer per Month | F169: 27.1231864 | G169: 25.53691067 | H169: 103.5829788 | I169: 295.7937645 | J169: 1361.871564 | K169: 659.0602123
B171: Cost by Classification at Uniform Current Return
A172: 12 | B172: Commodity | F172: =SUM(G172:K172) -> 17089428.42 | G172: 11100809.28 | H172: 4451879.91 | I172: 381768.6788 | J172: 59835.21041 | K172: 1095135.34
A173: 13 | B173: Demand | F173: =SUM(G173:K173) -> 17178948.46 | G173: 11383155.7 | H173: 3781683.879 | I173: 326609.9074 | J173: 69782.45406 | K173: 1617716.52
A174: 14 | B174: Customer | F174: =SUM(G174:K174) -> 52950623.11 | G174: 49951235.94 | H174: 2580108.958 | I174: 64954.50238 | J174: 28198.11112 | K174: 326125.5965
A175: 15 | B175: Total Uniform Current Cost | F175: =SUM(F172:F174) -> 87218999.98 | G175: 72435200.92 | H175: 10813672.75 | I175: 773333.0886 | J175: 157815.7756 | K175: 3038977.456
B177: Cost per Therm at Current Return
A178: 16 | B178: Commodity | F178: 0.08412865096 | G178: 0.09293531755 | H178: 0.09284088058 | I178: 0.09276742961 | J178: 0.06639010461 | K178: 0.03564948343
A179: 17 | B179: Demand | F179: 0.08456934446 | G179: 0.09529910502 | H179: 0.07886440526 | I179: 0.07936418903 | J179: 0.07742705997 | K179: 0.05266085036
A180: 18 | B180: Customer | F180: 0.2606678456 | G180: 0.4181887875 | H180: 0.05380639022 | I180: 0.01578354265 | J180: 0.03128718917 | K180: 0.01061623036
A181: 19 | B181: Total Cost per Therm at Current Return | F181: =SUM(F178:F180) -> 0.4293658411 | G181: 0.6064232101 | H181: 0.2255116761 | I181: 0.1879151613 | J181: 0.1751043538 | K181: 0.09892656415
B183: Cost per Unit at Uniform Current Return
A184: 20 | B184: Commodity Cost per Therm | F184: 0.08412865096 | G184: 0.09293531755 | H184: 0.09284088058 | I184: 0.09276742961 | J184: 0.06639010461 | K184: 0.03564948343
A185: 21 | B185: Demand Cost per Peak Day Therms | F185: 11.92407195 | G185: 11.92407195 | H185: 11.92407195 | I185: 11.92407195 | J185: 11.92407195 | K185: 11.92407195
A186: 22 | B186: Customer Cost per Customer per Month | F186: 28.14692955 | G186: 27.03776096 | H186: 78.22541788 | I186: 237.9285801 | J186: 1174.921297 | K186: 679.4283261
A188: 23 | B188: Margin to Cost Ratio at Current Rates | F188: =F158/F175 -> 1 | G188: 0.9335515244 | H188: 1.429864613 | I188: 1.324365736 | J188: 1.204997383 | K188: 0.9610391508
B191: Cost by Classification at Proposed Return by Schedule
A192: 24 | B192: Commodity | F192: =SUM(G192:K192) -> 20295103.42 | G192: 11424807.34 | H192: 7086612.265 | I192: 552516.9297 | J192: 78862.45584 | K192: 1152304.431
A193: 25 | B193: Demand | F193: =SUM(G193:K193) -> 20180002.92 | G193: 11736778.17 | H193: 6161248.781 | I193: 481799.0419 | J193: 94124.05195 | K193: 1706052.876
A194: 26 | B194: Customer | F194: =SUM(G194:K194) -> 55012893.64 | G194: 50871406.72 | H194: 3680226.948 | I194: 86859.87316 | J194: 35181.08878 | K194: 339219.0073
A195: 27 | B195: Total Proposed Rate Revenue | F195: =SUM(F192:F194) -> 95487999.98 | G195: 74032992.23 | H195: 16928087.99 | I195: 1121175.845 | J195: 208167.5966 | K195: 3197576.314
B197: Revenue per Therm at Proposed Rates
A198: 28 | B198: Commodity | F198: 0.09990970032 | G198: 0.09564781011 | H198: 0.147786404 | I198: 0.1342581993 | J198: 0.08750176789 | K198: 0.03751048496
A199: 29 | B199: Demand | F199: 0.09934307809 | G199: 0.09825961141 | H199: 0.1284885877 | I199: 0.1170741896 | J199: 0.1044352583 | K199: 0.05553642687
A200: 30 | B200: Customer | F200: 0.2708200891 | G200: 0.4258924028 | H200: 0.07674859105 | I200: 0.02110641238 | J200: 0.03903514583 | K200: 0.0110424547
A201: 31 | B201: Total Revenue per Therm at Proposed Rates | F201: =SUM(F198:F200) -> 0.4700728675 | G201: 0.6197998243 | H201: 0.3530235828 | I201: 0.2724388013 | J201: 0.230972172 | K201: 0.1040893665
B203: Cost per Unit at Proposed Rates
A204: 32 | B204: Commodity Cost per Therm | F204: 0.09990970032 | G204: 0.09564781011 | H204: 0.147786404 | I204: 0.1342581993 | J204: 0.08750176789 | K204: 0.03751048496
A205: 33 | B205: Demand Cost per Peak Day Therms | F205: 14.00713248 | G205: 12.29449821 | H205: 19.42710605 | I205: 17.5898107 | J205: 16.08344079 | K205: 12.57519287
A206: 34 | B206: Customer Cost per Customer per Month | F206: 29.24316941 | G206: 27.53583387 | H206: 111.5795091 | I206: 318.1680335 | J206: 1465.878699 | K206: 706.7062653
B208: Cost by Classification at Uniform Proposed Return
A209: 35 | B209: Commodity | F209: =SUM(G209:K209) -> 19136444.21 | G209: 12428737.22 | H209: 4984975.349 | I209: 427520.2113 | J209: 66779.89616 | K209: 1228431.538
A210: 36 | B210: Demand | F210: =SUM(G210:K210) -> 19366121.4 | G210: 12832425.44 | H210: 4263156.693 | I210: 368192.9155 | J210: 78666.94985 | K210: 1823679.405
A211: 37 | B211: Customer | F211: =SUM(G211:K211) -> 56985434.39 | G211: 53724525.62 | H211: 2802680.779 | I211: 70823.59605 | J211: 30746.67047 | K211: 356657.7164
A212: 38 | B212: Total Uniform Proposed Cost | F212: =SUM(F209:F211) -> 95488000 | G212: 78985688.28 | H212: 12050812.82 | I212: 866536.7228 | J212: 176193.5165 | K212: 3408768.66
B214: Cost per Therm at Proposed Return
A215: 39 | B215: Commodity | F215: 0.09420579766 | G215: 0.1040526516 | H215: 0.1039582178 | I215: 0.1038847692 | J215: 0.07409557452 | K215: 0.0399886189
A216: 40 | B216: Demand | F216: 0.09533646344 | G216: 0.1074323054 | H216: 0.08890518824 | I216: 0.089468603 | J216: 0.0872848444 | K216: 0.05936547417
A217: 41 | B217: Customer | F217: 0.2805306065 | G217: 0.4497785452 | H217: 0.05844797182 | I217: 0.01720969615 | J217: 0.03411494093 | K217: 0.01161012971
A218: 42 | B218: Total Cost per Therm at Proposed Return | F218: =SUM(F215:F217) -> 0.4700728676 | G218: 0.6612635022 | H218: 0.2513113778 | I218: 0.2105630684 | J218: 0.1954953598 | K218: 0.1109642228
B220: Cost per Unit at Uniform Proposed Return
A221: 43 | B221: Commodity Cost per Therm | F221: 0.09420579766 | G221: 0.1040526516 | H221: 0.1039582178 | I221: 0.1038847692 | J221: 0.07409557452 | K221: 0.0399886189
A222: 44 | B222: Demand Cost per Peak Day Therms | F222: 13.44220955 | G222: 13.44220955 | H222: 13.44220955 | I222: 13.44220955 | J222: 13.44220955 | K222: 13.44220955
A223: 45 | B223: Customer Cost per Customer per Month | F223: 30.29171166 | G223: 29.08017898 | H223: 84.97349481 | I223: 259.4270918 | J223: 1281.111269 | K223: 743.0369092
A225: 46 | B225: Margin to Cost Ratio at Proposed Rates | F225: =F195/F212 -> 0.9999999998 | G225: 0.9372962855 | H225: 1.404725826 | I225: 1.293858431 | J225: 1.181471377 | K225: 0.9380443887
A227: 47 | B227: Current Revenue to Proposed Cost Ratio | F227: =F158/F212 -> 0.9134027311 | G227: =G158/G212 -> 0.8561296826 | H227: =H158/H212 -> 1.283074281 | I227: 1.181918571 | J227: 1.079310978 | K227: 0.856783374
K229: Page 3 of 4
B231: =$B$3 -> Sumcost | C231: =$C$3 -> AVISTA UTILITIES | I231: =$I$3 -> Natural Gas Utility
B232: =$B$4 -> Company Base Case UG-17____ | C232: Customer Cost Analysis | I232: =$I$4 -> Washington Jurisdiction
C233: =$C$5 -> For the Twelve Months Ended December 31, 2016
B235: =$B$7 -> (b) | C235: =$C$7 -> (c) | D235: =$D$7 -> (d) | E235: =$E$7 -> (e) | F235: =$F$7 -> (f) | G235: =$G$7 -> (g) | H235: =$H$7 -> (h) | I235: =$I$7 -> (i) | J235: =$J$7 -> (j) | K235: =$K$7 -> (k)
F236: =$F$8 ->  | G236: =$G$8 -> General | H236: =$H$8 -> Large General | I236: =$I$8 -> High Load Factor | J236: =$J$8 -> Interruptible | K236: =$K$8 -> Transportation
F237: =$F$9 -> System | G237: =$G$9 -> Service | H237: =$H$9 -> Service | I237: =$I$9 -> Lg. Gen. Service | J237: =$J$9 -> Service | K237: =$K$9 -> Service
B238: =$B$10 -> Description | F238: =$F$10 -> Total | G238: =$G$10 -> Sch 101 | H238: =$H$10 -> Sch 111/112 | I238: =$I$10 -> Sch 121/122 | J238: =$J$10 -> Sch 131/132 | K238: =$K$10 -> Sch 146
B239: Meter, Services, Meter Reading & Billing Costs by Schedule at Requested Rate of Return
B241: Rate Base
A242: 1 | B242: Services | F242: =SUM(G242:Q242) -> 152554000 | G242: 149319667.9 | H242: 2665825.12 | I242: 66177.12081 | J242: 5817.768862 | K242: 496512.0669
A243: 2 | B243: Services Accum. Depr. | F243: =SUM(G243:Q243) -> -57597000 | G243: -56375872.89 | H243: -1006486.421 | I243: -24985.2749 | J243: -2196.507684 | K243: -187458.9032
A244: 3 | B244: Total Services | F244: =SUM(F242:F243) -> 94957000 | G244: =SUM(G242:G243) -> 92943795.03 | H244: 1659338.699 | I244: 41191.84591 | J244: 3621.261179 | K244: 309053.1637
A246: 4 | B246: Meters | F246: =SUM(G246:Q246) -> 57482000 | G246: 49283881.1 | H246: 7070798.435 | I246: 178659.8353 | J246: 90936.96199 | K246: 857723.6684
A247: 5 | B247: Meters Accum. Depr. | F247: =SUM(G247:Q247) -> -13440000 | G247: -11523178.77 | H247: -1653239.814 | I247: -41772.87127 | J247: -21262.18241 | K247: -200546.3641
A248: 6 | B248: Total Meters | F248: =SUM(F246:F247) -> 44042000 | G248: =SUM(G246:G247) -> 37760702.33 | H248: 5417558.622 | I248: 136886.964 | J248: 69674.77958 | K248: 657177.3043
... 25 more rows
